bitfinex/quotes_ETHUSD_20210401
["timestamp","ask_amount","ask_price","bid_price","bid_amount"]
[1617243834039,7.3993,1929.8,1929.7,45.75865679]
[1617243834239,7.3993,1929.8,1929.7,53.75865679]
[1617243834443,5.5598,1929.8,1929.7,53.75865679]
[1617243835642,4.5598,1929.8,1929.7,53.75865679]
[1617243835842,0.95670511,1930.1,1929.9,7.76658]
[1617243836043,0.95670511,1930.1,1930.0,25.66]
[1617243836242,0.95670511,1930.1,1930.0,40.6765]
[1617243836442,3.55,1930.7,1930.1,5.1]
[1617243836443,0.95670511,1930.3,1930.1,5.1]
[1617243836662,0.95670511,1930.3,1930.2,25.9509433]
[1617243836861,3.55,1930.7,1930.3,11.6]
[1617243837061,3.55,1930.7,1930.5,0.4]
[1617243837666,2.58520959,1930.7,1930.4,4.28741018]
[1617243837865,2.58520959,1930.7,1930.4,9.29741018]
[1617243838063,2.58520959,1930.7,1930.4,17.06333018]
[1617243838264,2.58520959,1930.7,1930.5,5.01]
[1617243838463,1.629,1930.7,1930.5,5.69]
[1617243839290,1.629,1930.7,1930.6,0.18118526]
[1617243839891,1.629,1930.7,1930.6,6.98118526]
[1617243840092,1.629,1930.7,1930.6,0.18118526]
[1617243840495,4.04912582,1930.8,1930.6,0.18118526]
[1617243840694,4.04912582,1930.8,1930.6,0.87118526]
[1617243840695,3.04912582,1930.8,1930.6,0.87118526]
[1617243841495,3.04912582,1930.8,1930.6,5.88118526]
[1617243841695,3.04912582,1930.8,1930.6,0.87118526]
[1617243841912,2.0,1930.7,1930.6,5.88118526]
[1617243843111,2.0,1930.7,1930.6,6.88118526]
[1617243843714,6.59912582,1930.8,1930.6,6.88118526]
[1617243844775,6.59912582,1930.8,1930.6,1.87118526]
[1617243845583,5.59912582,1930.8,1930.6,1.87118526]
[1617243846976,5.59912582,1930.8,1930.6,9.63595526]
[1617243847184,9.14912582,1930.8,1930.6,9.63595526]
[1617243847583,9.14912582,1930.8,1930.6,1.87118526]
[1617243848585,9.14912582,1930.8,1930.6,6.88118526]
[1617243849385,9.14912582,1930.8,1930.6,6.47118526]
[1617243850190,9.14912582,1930.8,1930.6,6.40640526]
[1617243850593,8.14912582,1930.8,1930.6,6.40640526]
[1617243851790,8.14912582,1930.8,1930.7,5.01]
[1617243852190,8.14912582,1930.8,1930.6,1.39640526]
[1617243852415,11.69912582,1930.8,1930.6,1.39640526]
[1617243852615,8.01942582,1930.8,1930.6,1.39640526]
[1617243853016,11.63602102,1930.8,1930.6,1.11640526]
[1617243853419,12.59223061,1930.8,1930.6,1.11640526]
[1617243854017,3.22079684,1930.7,1930.6,1.11640526]
[1617243854416,10.92700643,1930.7,1930.6,1.11640526]
[1617243855041,11.94455643,1930.7,1930.6,1.11640526]
[1617243857243,13.14455643,1930.7,1930.6,1.11640526]
[1617243857675,16.69455643,1930.7,1930.6,1.11640526]
[1617243858278,15.49455643,1930.7,1930.6,1.11640526]
[1617243858878,4.50620959,1930.7,1930.6,1.39640526]
[1617243859682,3.50620959,1930.7,1930.6,1.39640526]
[1617243860083,3.50620959,1930.7,1930.6,1.11640526]
[1617243862691,6.05620959,1930.7,1930.6,1.11640526]
[1617243862945,21.70546463,1930.7,1930.6,1.11640526]
[1617243863344,21.46147615,1930.7,1930.6,1.11640526]
[1617243863745,17.95000795,1930.7,1930.6,1.11640526]
[1617243864146,19.15000795,1930.7,1930.6,1.11640526]
[1617243864545,17.95000795,1930.7,1930.6,1.11640526]
[1617243864745,19.10600795,1930.7,1930.6,1.11640526]
[1617243865347,17.90600795,1930.7,1930.6,1.11640526]
[1617243866749,19.10600795,1930.7,1930.6,1.11640526]
[1617243867549,18.65000795,1930.7,1930.6,1.11640526]
[1617243867949,21.00000795,1930.7,1930.6,1.11640526]
[1617243871195,32.00000795,1930.7,1930.6,1.11640526]
[1617243871395,31.04399643,1930.7,1930.6,1.11640526]
[1617243873317,34.59399643,1930.7,1930.6,1.11640526]
[1617243875127,42.16329643,1930.7,1930.6,1.11640526]
[1617243875325,44.90976798,1930.7,1930.6,1.11640526]
[1617243875525,45.8657795,1930.7,1930.6,1.11640526]
[1617243875722,44.47250795,1930.7,1930.6,1.11640526]
[1617243875947,44.47250795,1930.7,1930.6,1.0]
[1617243876148,44.47250795,1930.7,1929.1,0.31015]
[1617243876149,31.41640526,1930.6,1929.5,0.09406894]
[1617243876349,31.41640526,1930.6,1929.5,0.322]
[1617243876350,0.14,1929.9,1929.5,0.322]
[1617243876550,7.2936,1929.9,1929.6,0.378]
[1617243876748,7.2936,1929.9,1929.5,0.28]
[1617243876951,7.77103,1929.7,1929.3,3.25406894]
[1617243877149,7.77103,1929.7,1929.3,3.44]
[1617243877546,9.55644599,1929.7,1929.3,0.28]
[1617243878149,7.77103,1929.7,1929.4,0.357]
[1617243878570,11.32103,1929.7,1929.4,0.357]
[1617243879977,11.32103,1929.7,1929.4,0.757]
[1617243880177,3.55,1929.7,1929.4,0.96195207]
[1617243880975,3.55,1929.7,1929.4,0.56195207]
[1617243882196,11.32095,1929.7,1929.4,0.56195207]
[1617243882794,12.35562395,1929.7,1929.4,1.60757294]
[1617243882996,11.32095,1929.7,1929.4,0.56195207]
[1617243883595,14.87095,1929.7,1929.4,0.56195207]
[1617243884017,14.87095,1929.7,1929.4,0.20495207]
[1617243884217,14.87095,1929.7,1929.4,0.48495207]
[1617243884616,14.62095,1929.7,1929.4,0.88495207]
[1617243885016,14.62095,1929.7,1929.4,0.48495207]
[1617243887449,14.62095,1929.7,1929.6,10.54]
[1617243887648,6.85,1929.7,1929.6,10.82]
[1617243888649,6.85,1929.7,1929.6,15.83]
[1617243888851,8.5621,1929.7,1929.6,18.58828]
[1617243889071,8.5621,1929.7,1929.6,26.46828]
[1617243889271,8.5621,1929.7,1929.6,18.7]
[1617243889500,8.5621,1929.7,1929.6,3.45]
[1617243889700,8.5621,1929.7,1929.6,0.67]
[1617243889907,8.5621,1929.7,1929.6,0.39]
[1617243890105,16.33283,1929.7,1929.6,0.39]
[1617243891502,16.33283,1929.7,1929.4,0.48495207]
[1617243891805,14.49423,1929.7,1929.5,0.39]
[1617243892403,14.49423,1929.7,1929.4,0.20495207]
[1617243893407,14.49423,1929.7,1929.4,0.89495207]
[1617243894003,18.04423,1929.7,1929.4,0.89495207]
[1617243895024,18.04423,1929.7,1929.4,0.48495207]
[1617243895427,18.04423,1929.7,1929.6,0.39]
[1617243895624,10.2735,1929.7,1929.6,0.39]
[1617243895825,10.2735,1929.7,1929.4,0.20495207]
[1617243896025,10.2735,1929.7,1929.4,0.51995207]
[1617243896625,10.2735,1929.7,1929.5,0.41]
[1617243896826,10.2735,1929.7,1929.6,3.37450365]
[1617243897047,10.2735,1929.7,1929.6,0.39]
[1617243897545,10.49799235,1929.7,1929.6,0.39]
[1617243897746,8.66019235,1929.7,1929.6,0.39]
[1617243899148,8.66019235,1929.7,1929.4,3.19063745]
[1617243899149,19.98097235,1929.7,1929.4,0.51295207]
[1617243900576,19.98097235,1929.7,1929.4,0.20495207]
[1617243900777,18.42449235,1929.5,1929.4,0.20495207]
[1617243901374,27.39275975,1929.5,1929.1,0.31015]
[1617243901574,30.20355659,1929.5,1929.1,0.31015]
[1617243901775,22.43173659,1929.5,1929.1,0.31015]
[1617243901975,2.89528919,1929.3,1929.1,0.31015]
[1617243902199,0.22449235,1929.3,1929.1,0.31015]
[1617243903204,7.77365,1929.2,1929.1,0.31015]
[1617243903401,7.99814235,1929.2,1929.1,0.31015]
[1617243904402,3.77449235,1929.2,1929.1,0.31015]
[1617243905223,3.77449235,1929.2,1929.1,0.4850902]
[1617243905624,3.77449235,1929.2,1929.1,0.8850902]
[1617243906427,3.77449235,1929.2,1929.1,0.4850902]
[1617243906826,1.92979235,1929.2,1929.1,0.8950902]
[1617243908668,1.92979235,1929.2,1929.1,0.4850902]
[1617243909270,9.70264235,1929.2,1929.1,0.4850902]
[1617243909670,13.25264235,1929.2,1929.1,0.4850902]
[1617243910280,17.27115132,1929.2,1929.1,0.4850902]
[1617243910681,15.92343919,1929.2,1929.1,0.4850902]
[1617243911085,17.22356799,1929.2,1929.1,0.4850902]
[1617243911283,15.92343919,1929.2,1929.1,0.4850902]
[1617243911682,13.25264235,1929.2,1929.1,0.4850902]
[1617243911884,15.92343919,1929.2,1929.1,0.4850902]
[1617243912483,13.25264235,1929.2,1929.1,0.4850902]
[1617243913501,26.53755263,1929.2,1929.1,0.4850902]
[1617243913705,30.52578143,1929.2,1929.1,0.4850902]
[1617243913901,40.92140155,1929.2,1929.1,0.31015]
[1617243914104,52.12127275,1929.2,1929.1,0.31015]
[1617243914501,37.80942684,1929.1,1928.8,16.5219571]
[1617243914702,22.26,1928.9,1928.8,16.5219571]
[1617243914902,24.93079684,1928.9,1928.8,16.5219571]
[1617243915102,26.30444902,1928.9,1928.8,16.5219571]
[1617243915325,28.08416054,1928.9,1928.8,16.5219571]
[1617243915525,26.71050836,1928.9,1928.8,16.5219571]
[1617243915927,29.27416054,1928.9,1928.8,16.5219571]
[1617243916127,32.27416054,1928.9,1928.8,16.5219571]
[1617243916330,40.68416054,1928.9,1928.8,16.5219571]
[1617243917834,39.86046054,1928.9,1928.8,16.5219571]
[1617243918448,42.71685519,1928.9,1928.8,16.5219571]
[1617243918648,42.71685519,1928.9,1928.8,7.1e-06]
[1617243918855,3.4130149,1928.8,1928.1,1.0]
[1617243919050,0.39,1928.3,1928.1,1.0]
[1617243919249,9.0515,1928.3,1928.1,1.0]
[1617243919451,14.10589465,1928.2,1928.1,1.0]
[1617243919651,3.98007413,1928.2,1928.1,1.0]
[1617243920050,13.93608565,1928.2,1928.1,1.0]
[1617243920251,16.26520565,1928.2,1928.1,1.0]
[1617243920452,16.88010784,1928.2,1928.1,1.0]
[1617243920698,12.28513152,1928.2,1928.1,1.0]
[1617243921100,15.00407516,1928.2,1928.1,1.0]
[1617243921300,18.551272,1928.2,1928.1,1.0]
[1617243921503,19.278672,1928.2,1928.1,1.0]
[1617243921905,26.49713466,1928.2,1928.1,1.0]
[1617243922103,28.31509597,1928.2,1928.1,1.0]
[1617243922501,20.06509597,1928.2,1928.1,1.0]
[1617243924903,26.36509597,1928.2,1928.1,1.0]
[1617243925301,29.91509597,1928.2,1928.1,1.0]
[1617243925703,23.61509597,1928.2,1928.1,1.0]
[1617243926133,21.79713466,1928.2,1928.1,1.0]
[1617243926336,20.19333466,1928.2,1928.1,1.0]
[1617243927136,18.50592836,1928.2,1928.1,1.0]
[1617243927335,70.52908614,1928.2,1928.1,1.0]
[1617243927535,74.36599474,1928.2,1928.1,1.0]
[1617243928136,75.55653667,1928.2,1928.1,1.0]
[1617243928336,81.76653667,1928.2,1928.1,1.0]
[1617243928546,91.49983667,1928.2,1928.1,1.0]
[1617243928746,90.88983667,1928.2,1928.1,1.0]
[1617243928946,91.03961601,1928.2,1928.1,1.0]
[1617243929548,81.83961601,1928.2,1928.1,1.0]
[1617243929948,80.97771601,1928.2,1928.1,1.0]
[1617243930149,77.14080741,1928.2,1928.1,1.0]
[1617243930351,77.60940741,1928.2,1928.1,1.0]
[1617243930551,92.15940741,1928.2,1928.1,1.0]
[1617243930750,101.08786952,1928.2,1928.1,1.0]
[1617243930950,98.47786952,1928.2,1928.1,1.0]
[1617243931177,96.64940741,1928.2,1928.1,1.0]
[1617243931378,98.60929252,1928.2,1928.1,1.0]
[1617243931578,100.18643408,1928.2,1928.1,1.0]
[1617243932178,99.79643408,1928.2,1928.1,1.0]
[1617243932379,91.11929252,1928.2,1928.1,1.0]
[1617243932578,89.15940741,1928.2,1928.1,1.0]
[1617243932779,84.14940741,1928.2,1928.1,1.0]
[1617243932979,74.80940741,1928.2,1928.1,1.0]
[1617243933379,74.80940741,1928.2,1928.1,1.38]
[1617243933580,74.80940741,1928.2,1928.1,1.0]
[1617243933799,73.80940741,1928.2,1928.1,1.0]
[1617243935424,74.28920741,1928.2,1928.1,0.95]
[1617243935826,82.28920741,1928.2,1928.1,0.95]
[1617243936025,77.83920741,1928.2,1928.1,0.95]
[1617243936226,77.45920741,1928.2,1928.1,0.95]
[1617243937844,24.2455077,1928.2,1928.1,0.95]
[1617243938844,23.2455077,1928.2,1928.1,0.95]
[1617243940048,24.43604963,1928.2,1928.1,0.95]
[1617243940449,23.89627029,1928.2,1928.1,0.95]
[1617243941048,26.25572836,1928.2,1928.1,0.95]
[1617243941251,26.25572836,1928.2,1928.1,1.34]
[1617243941453,18.47660836,1928.2,1928.1,7.6346]
[1617243941676,18.47660836,1928.2,1928.1,22.77980988]
[1617243941877,18.47660836,1928.2,1928.1,23.75870988]
[1617243942480,17.52059684,1928.2,1928.1,15.40791304]
[1617243942876,17.52059684,1928.2,1928.1,11.9735]
[1617243943078,15.68069684,1928.2,1928.1,15.40791304]
[1617243943278,15.68069684,1928.2,1928.1,14.42901304]
[1617243943878,14.68069684,1928.2,1928.1,14.42901304]
[1617243944301,14.68069684,1928.2,1928.1,10.9946]
[1617243944702,14.68069684,1928.2,1928.1,4.98]
[1617243944905,14.68069684,1928.2,1928.1,4.7]
[1617243945109,14.68069684,1928.2,1928.1,1.34]
[1617243945706,14.68069684,1928.2,1928.1,1.50312272]
[1617243945908,14.68069684,1928.2,1928.1,1.11312272]
[1617243946307,18.23069684,1928.2,1928.1,1.11312272]
[1617243947527,19.18670836,1928.2,1928.1,1.11312272]
[1617243948928,18.18670836,1928.2,1928.1,1.11312272]
[1617243951158,26.80470836,1928.2,1928.1,1.11312272]
[1617243951360,30.35470836,1928.2,1928.1,1.11312272]
[1617243953001,39.05460015,1928.2,1928.1,0.95]
[1617243953199,40.25460015,1928.2,1928.1,0.95]
[1617243953403,32.45,1928.1,1927.9,3.91e-06]
[1617243953599,8.39983512,1928.0,1927.9,3.91e-06]
[1617243953800,8.59983512,1928.0,1927.4,0.09161082]
[1617243953999,1.2,1927.8,1927.4,0.09161082]
[1617243954198,5.01,1927.8,1927.4,0.09161082]
[1617243954400,16.53861152,1927.8,1927.4,0.09161082]
[1617243954598,14.96,1927.7,1927.4,0.09161082]
[1617243954799,9.95,1927.7,1927.4,0.09161082]
[1617243955003,31.25,1927.6,1927.4,0.09161082]
[1617243955201,27.7,1927.4,1927.3,15.1468]
[1617243955400,37.9689,1927.4,1927.3,9.95729]
[1617243955603,45.9689,1927.4,1927.3,9.95729]
[1617243955800,46.3689,1927.4,1927.3,9.95729]
[1617243956002,46.3689,1927.4,1927.1,1.0]
[1617243956203,35.01,1927.2,1927.1,1.0]
[1617243956601,48.7199,1927.2,1927.1,1.0]
[1617243956801,49.1099,1927.2,1927.1,1.0]
[1617243957002,49.1099,1927.2,1926.6,1.07233712]
[1617243957003,89.1099,1927.2,1926.6,1.07233712]
[1617243957202,18.66,1926.7,1926.6,1.07233712]
[1617243957429,18.66,1926.7,1926.4,0.01421322]
[1617243957430,29.6,1926.6,1926.4,0.01421322]
[1617243957628,29.6,1926.6,1926.1,0.76421322]
[1617243957629,22.3,1926.4,1926.1,0.76421322]
[1617243957828,8.4635032,1926.3,1926.1,0.76421322]
[1617243958028,16.0616032,1926.3,1926.1,0.76421322]
[1617243958232,11.61,1926.2,1926.1,0.76421322]
[1617243958428,12.80054193,1926.2,1926.1,0.76421322]
[1617243958629,23.0635032,1926.2,1926.1,0.76421322]
[1617243958829,22.0635032,1926.2,1926.1,0.76421322]
[1617243959029,22.0635032,1926.2,1926.1,0.26421322]
[1617243959030,23.45984499,1926.2,1926.1,0.26421322]
[1617243959230,22.0635032,1926.2,1926.1,0.26421322]
[1617243959429,23.64384055,1926.2,1926.1,0.26421322]
[1617243959629,20.19033735,1926.2,1926.1,0.26421322]
[1617243960257,17.15,1926.1,1925.9,2.1125571]
[1617243960458,17.15,1926.1,1925.9,2.1025571]
[1617243960459,25.74779,1926.0,1925.9,2.1025571]
[1617243960859,8.19779,1926.0,1925.9,2.1025571]
[1617243961258,0.41,1926.0,1925.9,2.1025571]
[1617243961461,21.31,1926.0,1925.9,2.1025571]
[1617243961856,24.86,1926.0,1925.9,2.1025571]
[1617243962056,11.55,1926.0,1925.9,2.0025571]
[1617243962257,3.55,1926.0,1925.9,2.0025571]
[1617243962457,4.50601152,1926.0,1925.9,2.0025571]
[1617243963677,4.50601152,1926.0,1925.9,2.2825571]
[1617243963880,4.00601152,1926.0,1925.9,2.2825571]
[1617243964079,2.16601152,1926.0,1925.9,2.2825571]
[1617243964279,2.16601152,1926.0,1925.9,27.8925571]
[1617243964479,1.21,1926.0,1925.9,7.3025571]
[1617243964679,1.21,1926.0,1925.9,2.6825571]
[1617243965504,1.21,1926.0,1925.9,12.1825571]
[1617243965704,1.21,1926.0,1925.9,2.6825571]
[1617243967105,2.9162,1926.0,1925.9,2.6825571]
[1617243969127,2.9162,1926.0,1925.9,3.8825571]
[1617243969327,2.9162,1926.0,1925.9,2.2825571]
[1617243969528,2.9162,1926.0,1925.9,2.0025571]
[1617243969829,13.34949452,1926.0,1925.9,2.0025571]
[1617243970227,9.9562,1926.0,1925.9,2.0025571]
[1617243970448,24.26221152,1926.0,1925.9,2.0025571]
[1617243970652,54.26221152,1926.0,1925.9,2.0025571]
[1617243970851,54.26221152,1926.0,1925.9,7.1e-06]
[1617243970852,67.87221152,1926.0,1925.9,7.1e-06]
[1617243971051,67.87221152,1926.0,1925.6,1.0]
[1617243971052,131.8953693,1926.0,1925.6,1.0]
[1617243971253,32.0,1925.7,1925.6,0.994]
[1617243971451,45.3894315,1925.7,1925.6,0.994]
[1617243971649,46.9276315,1925.7,1925.6,0.994]
[1617243971849,48.28364302,1925.7,1925.6,0.994]
[1617243972061,18.28364302,1925.7,1925.6,0.994]
[1617243972250,8.44421152,1925.7,1925.6,0.994]
[1617243972450,23.04421152,1925.7,1925.6,0.994]
[1617243972650,31.04421152,1925.7,1925.6,0.994]
[1617243972851,16.44421152,1925.7,1925.6,0.994]
[1617243973076,8.44421152,1925.7,1925.6,0.994]
[1617243973278,2.0,1925.5,1925.1,1.0]
[1617243973478,2.0,1925.5,1925.2,0.378]
[1617243973479,2.0,1925.3,1925.2,0.378]
[1617243973677,11.05,1925.3,1925.2,0.378]
[1617243973883,11.05,1925.3,1925.1,1.0]
[1617243974078,11.05,1925.3,1925.1,1.18]
[1617243974478,7.78956,1925.2,1925.1,1.18]
[1617243974679,9.78956,1925.2,1925.1,1.18]
[1617243975281,16.48956,1925.2,1925.1,0.9]
[1617243975481,10.74557152,1925.2,1925.1,0.9]
[1617243975904,9.74557152,1925.2,1925.1,0.9]
[1617243977305,9.74557152,1925.2,1925.1,0.8002]
[1617243977506,20.68517152,1925.2,1925.1,0.8002]
[1617243978107,21.07517152,1925.2,1925.1,0.8002]
[1617243978329,20.68517152,1925.2,1925.1,0.8002]
[1617243978932,13.89561152,1925.2,1925.1,0.8002]
[1617243979134,6.50601152,1925.2,1925.1,0.8002]
[1617243979554,5.55,1925.2,1925.1,0.8002]
[1617243979754,5.55,1925.2,1925.1,2.3902]
[1617243979953,5.55,1925.2,1925.1,2.7122]
[1617243980155,5.55,1925.2,1925.1,7.7222]
[1617243980352,5.55,1925.2,1925.1,18.1722]
[1617243980554,5.55,1925.2,1925.1,20.8922]
[1617243980754,5.55,1925.2,1925.1,29.39981749]
[1617243980973,4.55,1925.2,1925.1,43.99981749]
[1617243981373,4.55,1925.2,1925.1,29.39981749]
[1617243981778,3.55,1925.7,1925.1,29.39981749]
[1617243981977,3.55,1925.7,1925.6,25.23]
[1617243982179,1.7129,1925.7,1925.6,35.08179684]
[1617243982377,1.7129,1925.7,1925.6,38.86179684]
[1617243982578,5.2629,1925.7,1925.6,38.86179684]
[1617243982978,5.2629,1925.7,1925.6,40.59058455]
[1617243983179,5.2629,1925.7,1925.6,48.37408455]
[1617243983379,5.2629,1925.7,1925.6,50.44968455]
[1617243984578,5.2629,1925.7,1925.6,58.44968455]
[1617243985180,3.425,1925.7,1925.6,56.72089684]
[1617243985379,3.425,1925.7,1925.6,48.72089684]
[1617243985780,2.425,1925.7,1925.6,48.91445217]
[1617243987806,5.975,1925.7,1925.6,48.91445217]
[1617243988208,5.975,1925.7,1925.6,56.91445217]
[1617243988209,4.136,1925.7,1925.6,56.91445217]
[1617243988409,1.9162,1926.0,1925.7,29.15]
[1617243988609,1.9162,1926.0,1925.9,21.26]
[1617243988829,1.9162,1926.0,1925.9,37.80079684]
[1617243989229,1.9162,1926.0,1925.9,45.58351684]
[1617243989633,1.9162,1926.0,1925.9,47.19921762]
[1617243990030,1.9162,1926.0,1925.9,45.53351684]
[1617243990231,1.9162,1926.0,1925.9,18.10079684]
[1617243990431,1.9162,1926.0,1925.9,9.8]
[1617243990631,1.9162,1926.0,1925.9,6.62]
[1617243990831,0.8662,1926.0,1925.9,12.61]
[1617243991032,0.8662,1926.0,1925.9,1.61]
[1617243991232,0.20683735,1926.5,1925.9,1.61]
[1617243991452,0.20683735,1926.5,1926.2,0.41]
[1617243991653,7.78324,1926.7,1926.2,0.69]
[1617243992256,7.78324,1926.7,1926.3,0.39]
[1617243992453,7.78324,1926.7,1926.3,0.677]
[1617243992854,0.14,1926.8,1926.3,0.677]
[1617243992855,0.14,1926.8,1926.4,0.39]
[1617243993054,0.14,1926.8,1926.3,0.677]
[1617243993055,3.55,1926.7,1926.3,0.287]
[1617243993254,3.55,1926.7,1926.0,0.39]
[1617243993452,0.133,1926.6,1926.1,0.476]
[1617243993653,3.55,1926.7,1926.4,0.39]
[1617243993854,3.55,1926.7,1926.4,0.719]
[1617243994281,3.55,1926.7,1926.4,4.60993]
[1617243994481,3.55,1926.7,1926.5,2.0751623]
[1617243994883,3.55,1926.7,1926.5,9.8570223]
[1617243995085,3.55,1926.7,1926.5,13.5770223]
[1617243995685,3.55,1926.7,1926.6,8.28232858]
[1617243995881,2.55,1926.7,1926.6,8.28232858]
[1617243996080,2.55,1926.7,1926.6,0.20232858]
[1617243998326,6.1,1926.7,1926.6,0.20232858]
[1617244000928,5.1,1926.7,1926.6,6.03232858]
[1617244001128,5.1,1926.7,1926.6,0.58232858]
[1617244001331,5.1,1926.7,1926.6,5.59232858]
[1617244002754,5.1,1926.7,1926.6,6.79232858]
[1617244002951,15.5892278,1927.1,1926.8,1.2]
[1617244003151,15.5892278,1927.1,1927.0,15.45]
[1617244003351,12.2281,1927.1,1927.0,15.73]
[1617244003551,12.2281,1927.1,1927.0,0.68]
[1617244003552,15.7781,1927.1,1927.0,0.68]
[1617244003751,15.7781,1927.1,1927.0,5.69]
[1617244005380,15.7781,1927.1,1927.0,5.29]
[1617244005578,15.7781,1927.1,1927.0,5.01]
[1617244005777,15.7781,1927.1,1926.9,11.66883]
[1617244005978,14.7781,1927.1,1926.9,17.94883]
[1617244006179,14.7781,1927.1,1927.0,5.01]
[1617244006378,12.9325,1927.1,1927.0,8.45]
[1617244006979,12.9325,1927.1,1927.0,23.0042512]
[1617244007207,4.09003133,1927.2,1927.1,32.814]
[1617244007208,3.55,1927.2,1927.1,32.814]
[1617244007407,3.55,1927.2,1927.1,48.27479684]
[1617244007606,3.55,1927.2,1927.1,48.66479684]
[1617244008010,3.55,1927.2,1927.1,56.44272684]
[1617244008206,3.55,1927.2,1927.1,25.19272684]
[1617244008408,3.55,1927.2,1927.1,16.46872684]
[1617244008606,3.55,1927.2,1927.1,8.16793]
[1617244008807,7.1,1927.2,1927.1,8.16793]
[1617244009208,7.1,1927.2,1927.1,8.11793]
[1617244009407,5.2532,1927.2,1927.1,8.11793]
[1617244009827,5.2532,1927.2,1927.1,13.12793]
[1617244010228,5.2532,1927.2,1927.1,16.64793]
[1617244010637,5.2532,1927.2,1927.1,16.80025551]
[1617244010830,4.2532,1927.2,1927.1,25.10105235]
[1617244011230,4.2532,1927.2,1927.1,16.80025551]
[1617244012476,2.4122,1927.2,1927.1,16.80025551]
[1617244012676,2.4122,1927.2,1927.1,25.10105235]
[1617244014078,5.9622,1927.2,1927.1,16.80025551]
[1617244015478,4.1247,1927.2,1927.1,18.00025551]
[1617244015684,1.0,1927.4,1927.3,3.38680646]
[1617244015884,14.7093,1927.6,1927.4,17.9]
[1617244016079,14.7093,1927.6,1927.4,18.18]
[1617244016280,14.7093,1927.6,1927.5,5.01]
[1617244016479,14.7093,1927.6,1927.5,5.42]
[1617244017280,14.7093,1927.6,1927.5,13.19786]
[1617244017480,14.7093,1927.6,1927.5,18.75786]
[1617244018508,12.8684,1927.6,1927.5,18.75786]
[1617244019307,16.4184,1927.6,1927.5,18.75786]
[1617244019709,16.4184,1927.6,1927.5,27.05865684]
[1617244019909,16.4184,1927.6,1927.5,18.75786]
[1617244020337,16.4184,1927.6,1927.5,27.05865684]
[1617244020538,16.4184,1927.6,1927.5,18.75786]
[1617244020737,16.4184,1927.6,1927.5,27.05865684]
[1617244020937,16.4184,1927.6,1927.5,18.75786]
[1617244021140,16.4184,1927.6,1927.5,27.05865684]
[1617244021338,14.5725,1927.6,1927.5,27.05865684]
[1617244023056,12.36527554,1928.2,1927.6,18.05]
[1617244023257,12.36527554,1928.2,1928.1,0.13342989]
[1617244024056,12.36527554,1928.2,1928.1,5.14342989]
[1617244024255,12.36527554,1928.2,1928.1,0.13342989]
[1617244024457,15.91527554,1928.2,1928.1,0.13342989]
[1617244025061,15.91527554,1928.2,1928.1,5.14342989]
[1617244025257,15.91527554,1928.2,1928.1,0.13342989]
[1617244027505,14.07637554,1928.2,1928.1,0.13342989]
[1617244029506,17.62637554,1928.2,1928.1,0.13342989]
[1617244029707,17.62637554,1928.2,1928.1,7.90926989]
[1617244030507,15.78787554,1928.2,1928.1,7.90926989]
[1617244031233,16.82625868,1928.2,1928.1,7.90926989]
[1617244031437,15.68787554,1928.2,1928.1,7.90926989]
[1617244033462,13.84957554,1928.2,1928.1,7.90926989]
[1617244034864,17.39957554,1928.2,1928.1,7.90926989]
[1617244035666,17.39957554,1928.2,1928.1,7.89274321]
[1617244036487,15.55537554,1928.2,1928.1,7.89274321]
[1617244037688,14.55537554,1928.2,1928.1,7.89274321]
[1617244039513,12.67587554,1928.2,1928.1,7.89274321]
[1617244039719,12.67587554,1928.2,1928.1,8.27274321]
[1617244040115,16.22587554,1928.2,1928.1,8.27274321]
[1617244040317,16.22587554,1928.2,1928.1,7.89274321]
[1617244042156,16.22587554,1928.2,1928.1,0.11690321]
[1617244042555,14.38677554,1928.2,1928.1,0.11690321]
[1617244043756,13.38677554,1928.2,1928.1,0.11690321]
[1617244044365,14.98677554,1928.2,1928.1,0.11690321]
[1617244044565,36.18677554,1928.2,1928.1,0.11690321]
[1617244044963,49.19677554,1928.2,1928.1,0.11690321]
[1617244045362,53.70278706,1928.2,1927.4,10.37048]
[1617244045563,1.2,1927.9,1927.5,8.14253]
[1617244045762,1.2,1927.9,1927.5,8.54253]
[1617244045962,9.6737,1928.0,1927.5,8.54253]
[1617244046163,9.6737,1928.0,1927.5,12.26253]
[1617244046583,9.6737,1928.0,1927.5,8.54253]
[1617244046985,9.6737,1928.0,1927.6,0.336]
[1617244047986,9.6737,1928.0,1927.7,7.77747]
[1617244048385,5.21036095,1928.1,1927.7,8.09947]
[1617244049410,5.21036095,1928.1,1928.0,0.20659554]
[1617244049610,18.03278706,1928.2,1928.0,0.20659554]
[1617244050211,17.89278706,1928.2,1928.0,0.20659554]
[1617244050612,21.44278706,1928.2,1928.0,0.20659554]
[1617244050812,21.44278706,1928.2,1928.1,13.98]
[1617244051012,21.44278706,1928.2,1928.1,17.26]
[1617244051213,21.44278706,1928.2,1928.1,17.54]
[1617244051411,21.44278706,1928.2,1928.1,25.84079684]
[1617244051412,20.48677554,1928.2,1928.1,25.84079684]
[1617244051610,20.48067554,1928.2,1928.1,25.84079684]
[1617244051832,20.48067554,1928.2,1928.1,12.24079684]
[1617244052035,20.48067554,1928.2,1928.1,20.01581684]
[1617244053241,20.48067554,1928.2,1928.1,13.7885845]
[1617244055860,24.03067554,1928.2,1928.1,13.1285845]
[1617244056662,24.03067554,1928.2,1928.1,13.5185845]
[1617244057683,22.17137554,1928.2,1928.1,13.5185845]
[1617244058282,22.17137554,1928.2,1928.1,13.1285845]
[1617244059481,22.17137554,1928.2,1928.1,13.5185845]
[1617244060711,20.33337554,1928.2,1928.1,13.5185845]
[1617244060912,20.33337554,1928.2,1928.1,16.91038548]
[1617244061111,23.88337554,1928.2,1928.1,13.5185845]
[1617244063734,22.04187554,1928.2,1928.1,13.5185845]
[1617244066360,25.59187554,1928.2,1928.1,13.1285845]
[1617244066762,23.75287554,1928.2,1928.1,13.5385845]